[Event "Karnataka State Open-ch 2018"]
[Site "Bengaluru"]
[Date "2018.04.15"]
[Round "4"]
[White "Shiva Chethan Halamane"]
[Black "Isha, Sharma"]
[Result "0-1"]
[ECO "A41"]
[WhiteElo "1477"]
[BlackElo "1926"]
[Annotator "NA"]
[PlyCount "100"]
[EventDate "2018.??.??"]
[EventType "swiss"]
[EventCountry "IND"]
[SourceTitle "playchess.com"]
[Source "ChessBase"]
[SourceQuality "1"]
[TimeControl "5400+30"]

1. d4 {[%emt 0:00:00]} d6 {[%emt 0:01:20]} 2. c4 {[%emt 0:00:00]} e5 {[%emt 0:00:04]} 3. dxe5 {[%emt 0:07:01]} dxe5 {[%emt 0:00:07]} 4. Qxd8+ {[%emt 0:00:16]} Kxd8 {[%emt 0:00:07]} 5. Nf3 {[%emt 0:00:31]} Nc6 {[%emt 0:00:12] A41: 1 d4 d6: Tartakower System and Modern Defence} (5... f6 6. Nc3 Be6 7. e4 Nd7 8. Be3 c6 9. a3 Bc5 10. Bxc5 Nxc5 11. O-O-O+ Kc7 12. b4 Nd7 13. Kb2 Nh6 14. Be2 a5 15. c5 axb4 16. axb4 {½-½ (30) Charkhalashvili,I (2348)-Oleksienko,M (2621) Dubai 2018}) 6. a3 {[%emt 0:11:20]} Be6 {[%emt 0:00:54]} 7. e3 {[%emt 0:02:07]} a5 $146 {[%emt 0:01:12]} ({Find the theoretical novelty and annotate with similar games:} 7... f6 8. b4 a5 9. b5 Nb8 10. Nc3 Nd7 11. Na4 Ne7 12. Be2 Nc8 13. O-O {½-½ (48) Salanki,E (2248)-Sandor,J (2164) Hungary 1999}) 8. b3 {[%emt 0:02:49]} Nf6 {[%emt 0:03:49]} 9. Nc3 {[%emt 0:06:06]} h6 {[%emt 0:02:48]} 10. Bb2 {[%emt 0:05:14]} Nd7 {[%emt 0:01:35]} 11. O-O-O {[%emt 0:05:40]} Kc8 {[%emt 0:00:05]} 12. e4 {[%emt 0:05:57]} Bc5 {[%emt 0:01:36]} 13. Rd2 {[%emt 0:01:29]} g5 {[%emt 0:00:34]} 14. h3 {[%emt 0:01:59]} f6 {[%emt 0:04:17]} 15. Bd3 {[%emt 0:03:25]} h5 {[%emt 0:08:34]} 16. Bc2 {[%emt 0:04:34]} Ne7 {[%emt 0:04:20]} 17. Nd5 {[%emt 0:03:07]} c6 {[%emt 0:02:08]} 18. Nxe7+ {[%emt 0:05:54]} Bxe7 {[%emt 0:00:05]} 19. h4 {[%emt 0:04:15]} g4 {[%emt 0:01:06]} 20. Nh2 {[%emt 0:00:36] [#]} a4 $1 {[%emt 0:00:59]} 21. b4 {[%emt 0:05:30]} Bxc4 {[%emt 0:01:23]} 22. Rhd1 {[%emt 0:00:05]} Nb6 {[%emt 0:01:08]} 23. Nf1 {[%emt 0:02:24]} Be6 {[%emt 0:04:35]} 24. g3 {[%emt 0:03:06]} Nc4 {[%emt 0:02:22]} 25. Rd3 {[%emt 0:01:12]} b5 {[%emt 0:01:35]} 26. Nd2 {[%emt 0:04:07]} Nd6 {[%emt 0:05:21]} 27. Re3 {[%emt 0:04:10]} Kc7 {[%emt 0:01:42]} 28. Nb1 $2 {[%emt 0:00:32]} (28. Kb1) 28... Bf8 {[%emt 0:01:08]} 29. Rc3 {[%emt 0:02:06]} Bh6+ {[%emt 0:00:11]} 30. Nd2 {[%emt 0:00:40]} Nc4 {[%emt 0:00:05]} 31. Rd3 {[%emt 0:01:23]} Rad8 {[%emt 0:00:10]} 32. Bc3 {[%emt 0:01:21]} Nxa3 {[%emt 0:01:40]} 33. Kb2 {[%emt 0:02:34]} Bxd2 {[%emt 0:01:08]} 34. Kxa3 {[%emt 0:01:02]} Rxd3 {[%emt 0:00:06]} 35. Bxd3 {[%emt 0:00:37]} Bxc3 {[%emt 0:00:05]} 36. Bxb5 {[%emt 0:00:11]} Bxb4+ {[%emt 0:01:20]} 37. Kxb4 {[%emt 0:00:03]} cxb5 {[%emt 0:00:05]} 38. Kxb5 {[%emt 0:00:16]} Rb8+ {[%emt 0:00:06]} 39. Ka5 {[%emt 0:00:55]} a3 {[%emt 0:00:08]} 40. Ra1 {[%emt 0:00:08]} a2 {[%emt 0:00:04]} 41. Ka4 {[%emt 0:00:02]} Rb1 {[%emt 0:00:07]} 42. Rxa2 {[%emt 0:00:06]} Bxa2 {[%emt 0:00:05]} 43. Ka3 {[%emt 0:00:05]} Be6 {[%emt 0:00:09]} 44. Ka4 {[%emt 0:00:02]} Kc6 {[%emt 0:00:10]} 45. Ka5 {[%emt 0:00:26]} Bc4 {[%emt 0:00:09]} 46. Ka4 {[%emt 0:00:04]} Kc5 {[%emt 0:00:16]} 47. Ka3 {[%emt 0:00:05]} Rb6 {[%emt 0:02:24]} 48. f4 {[%emt 0:00:20]} Kd4 {[%emt 0:00:08]} 49. fxe5 {[%emt 0:00:24]} Kc3 {[%emt 0:00:06]} 50. exf6 {[%emt 0:00:04]} Ra6# {[%emt 0:00:04]} 0-1

[Event "Karnataka State Open-ch 2018"]
[Site "Bengaluru"]
[Date "2018.04.15"]
[Round "4"]
[White "Sanjana Raghunath"]
[Black "Raghavendra, V."]
[Result "1-0"]
[ECO "A45"]
[WhiteElo "1472"]
[BlackElo "1898"]
[Annotator "NA RC"]
[PlyCount "123"]
[EventDate "2018.??.??"]
[EventType "swiss"]
[EventCountry "IND"]
[SourceTitle "playchess.com"]
[Source "ChessBase"]
[SourceQuality "1"]
[TimeControl "5400+30"]

1. d4 {[%emt 0:00:00]} Nf6 {[%emt 0:02:04]} 2. Bf4 {[%emt 0:00:02]} g6 {[%emt 0:00:04]} 3. Nc3 {[%emt 0:00:11]} d5 {[%emt 0:00:35] A45: Trompowsky Attack} 4. e3 {[%emt 0:00:18]} Bg7 {[%emt 0:00:15]} 5. h4 {[%emt 0:00:50]} c6 {[%emt 0:00:17]} (5... h5 6. Nf3 Bg4 7. Be2 Bxf3 8. Bxf3 c6 9. Qd2 Nbd7 10. O-O-O b5 11. Kb1 {½-½ (34) Aronian,L (2797)-Vachier Lagrave,M (2793) Caleta 2018}) 6. Be2 {[%emt 0:00:31]} h6 {[%emt 0:01:17]} 7. Nf3 {[%emt 0:00:24]} Nbd7 {[%emt 0:00:44]} 8. Ne5 {[%emt 0:03:45]} Qa5 $146 {[%emt 0:01:36]} ({Predecessor:} 8... Qb6 9. a3 Nxe5 10. Bxe5 h5 11. b4 {0-1 (38) Kozionov,K (2423)-Urazayev,A (2346) Moscow 2018}) 9. Qd2 {[%emt 0:02:35]} Nxe5 {[%emt 0:00:36]} 10. Bxe5 {[%emt 0:00:33]} b5 {[%emt 0:01:40]} 11. a3 {[%emt 0:02:35]} O-O {[%emt 0:00:35]} 12. f3 {[%emt 0:03:19]} Nd7 {[%emt 0:01:27]} 13. Bxg7 {[%emt 0:03:25]} Kxg7 {[%emt 0:00:03]} 14. h5 {[%emt 0:02:14]} g5 {[%emt 0:01:08]} 15. g4 {[%emt 0:00:39]} b4 {[%emt 0:02:43]} 16. Na2 {[%emt 0:00:38]} Qc7 {[%emt 0:01:35]} 17. Nxb4 {[%emt 0:01:11]} Qg3+ {[%emt 0:01:11]} 18. Kd1 {[%emt 0:00:36]} Rb8 {[%emt 0:01:31]} 19. Nxc6 {[%emt 0:03:20]} Rxb2 {[%emt 0:00:27]} 20. Nb4 {[%emt 0:00:09]} Nb6 {[%emt 0:06:28]} 21. Kc1 {[%emt 0:02:48]} Rxb4 {[%emt 0:03:21]} 22. axb4 {[%emt 0:00:39]} Nc4 {[%emt 0:02:00]} 23. Bxc4 {[%emt 0:00:38]} dxc4 {[%emt 0:00:34]} 24. Rf1 {[%emt 0:02:34]} Bb7 {[%emt 0:03:52]} 25. e4 {[%emt 0:02:16]} a6 {[%emt 0:01:22]} 26. c3 {[%emt 0:00:30]} Rd8 {[%emt 0:02:45]} 27. Qe3 {[%emt 0:01:30]} Rd6 {[%emt 0:03:19]} 28. Ra5 {[%emt 0:02:50]} Bc8 {[%emt 0:01:36]} 29. e5 {[%emt 0:02:12]} Re6 {[%emt 0:01:57]} 30. Qe4 {[%emt 0:05:51]} Bd7 {[%emt 0:01:16]} 31. Re1 {[%emt 0:00:36]} Bb5 {[%emt 0:00:58]} 32. d5 {[%emt 0:00:50]} Rb6 {[%emt 0:00:05]} 33. Rd1 {[%emt 0:02:29]} Kg8 {[%emt 0:04:10]} 34. Kb1 {[%emt 0:03:13]} Rb8 {[%emt 0:02:37]} 35. e6 {[%emt 0:00:22]} Rf8 {[%emt 0:01:30]} 36. Ra2 {[%emt 0:03:21]} Kh8 {[%emt 0:04:27]} 37. Qf5 {[%emt 0:02:00]} Kg8 {[%emt 0:02:06]} 38. Rf1 {[%emt 0:05:44]} Qf4 {[%emt 0:00:42]} 39. Qxf4 {[%emt 0:00:53]} gxf4 {[%emt 0:00:03]} 40. Re2 {[%emt 0:00:52]} Rd8 {[%emt 0:06:44]} 41. exf7+ {[%emt 0:01:33]} Kxf7 {[%emt 0:00:04]} 42. Re5 {[%emt 0:00:18]} Kf8 {[%emt 0:03:42]} 43. Rfe1 {[%emt 0:00:27]} Be8 {[%emt 0:04:10]} 44. Rf5+ {[%emt 0:01:24]} Bf7 {[%emt 0:00:03]} 45. Ree5 {[%emt 0:00:21]} Ke8 {[%emt 0:00:15]} 46. Rxf4 {[%emt 0:00:20]} Bxd5 {[%emt 0:00:35]} 47. Ref5 {[%emt 0:00:36]} Rd6 {[%emt 0:01:12]} 48. Rd4 {[%emt 0:01:24]} e6 {[%emt 0:00:31]} 49. Re5 {[%emt 0:00:17]} Kf7 {[%emt 0:01:29]} 50. f4 {[%emt 0:00:21]} Kf6 {[%emt 0:00:17]} 51. Re1 {[%emt 0:00:24]} Rd8 {[%emt 0:01:36]} 52. Rg1 {[%emt 0:02:35]} Rg8 {[%emt 0:01:14] [#]} 53. g5+ $1 {[%emt 0:01:34]} hxg5 {[%emt 0:01:43]} 54. fxg5+ {[%emt 0:00:06]} Rxg5 {[%emt 0:02:26]} 55. Rf4+ {[%emt 0:00:04]} Rf5 {[%emt 0:00:07]} 56. Rxf5+ {[%emt 0:01:17]} exf5 {[%emt 0:00:02]} 57. h6 {[%emt 0:00:35]} f4 {[%emt 0:01:12]} 58. Kc1 {[%emt 0:00:16]} Be4 {[%emt 0:00:21]} 59. Rg4 {[%emt 0:00:31]} (59. Kd2 $142 Bg6 60. Ra1) 59... Ke5 {[%emt 0:00:44]} 60. Rg7 {[%emt 0:00:46]} Kf6 {[%emt 0:00:25]} 61. Rd7 $18 {[%emt 0:00:59]} (61. Ra7 $142 Ke6 62. h7 Bxh7 63. Rxh7 Kd6 64. Rh6+ Ke7 65. Rxa6 Kd7 66. Rf6) 61... Ke6 {[%emt 0:01:57] [#]} 62. h7 $1 {[%emt 0:00:22]} 1-0

[Event "Karnataka State Open-ch 2018"]
[Site "Bengaluru"]
[Date "2018.04.15"]
[Round "4"]
[White "Sujay B M"]
[Black "Hardik, Jha"]
[Result "0-1"]
[ECO "A05"]
[WhiteElo "1447"]
[BlackElo "1882"]
[Annotator "NA"]
[PlyCount "72"]
[EventDate "2018.??.??"]
[EventType "swiss"]
[EventCountry "IND"]
[SourceTitle "playchess.com"]
[Source "ChessBase"]
[SourceQuality "1"]
[TimeControl "5400+30"]

1. Nf3 {[%emt 0:00:00]} Nf6 {[%emt 0:00:10]} 2. g3 {[%emt 0:00:00]} g6 {[%emt 0:00:13]} 3. b3 {[%emt 0:00:54]} Bg7 {[%emt 0:00:13]} 4. Bb2 {[%emt 0:00:13]} d6 {[%emt 0:03:25]} 5. Bg2 {[%emt 0:00:07]} c6 {[%emt 0:01:12]} 6. d4 {[%emt 0:00:08]} O-O {[%emt 0:00:43]} 7. O-O {[%emt 0:00:09]} Nbd7 {[%emt 0:00:11]} 8. c4 {[%emt 0:00:16]} Qe8 {[%emt 0:00:47] E60: King's Indian: Unusual lines and Fianchetto Variation without Nc3} (8... Re8 9. Nc3 e5 10. e4 exd4 11. Nxd4 Nc5 12. Re1 Ng4 13. b4 Qb6 14. a3 a5 15. Na2 axb4 16. axb4 Na4 {0-1 (16) Vachier Lagrave,M (2795)-Grischuk,A (2750) chess.com INT 2017}) 9. Nbd2 $146 {[%emt 0:04:22]} ({Predecessor:} 9. Nc3 e5 10. e4 exd4 11. Nxd4 Nc5 12. Re1 a5 13. Nc2 {1-0 (13) Ioseliani,N (2475)-Socko,M (2310) Kishinev 1995}) 9... Rb8 {[%emt 0:10:50]} 10. e4 {[%emt 0:10:18]} e5 {[%emt 0:08:37]} 11. Nh4 {[%emt 0:15:47]} c5 {[%emt 0:02:59]} 12. d5 {[%emt 0:05:39]} Qe7 {[%emt 0:06:10]} 13. f4 {[%emt 0:04:38]} exf4 {[%emt 0:02:03]} 14. Rxf4 {[%emt 0:01:01]} Ne5 {[%emt 0:01:28]} 15. Bxe5 {[%emt 0:26:38]} Qxe5 {[%emt 0:01:36]} 16. Nhf3 {[%emt 0:00:02]} Qc3 {[%emt 0:04:06]} 17. Rc1 {[%emt 0:03:27]} Qe3+ {[%emt 0:00:47]} 18. Kh1 {[%emt 0:00:01] [#]} Ng4 $1 {[%emt 0:02:53]} 19. Rxg4 {[%emt 0:08:58]} Bxg4 {[%emt 0:00:21]} 20. Qe1 {[%emt 0:00:52]} Qxe1+ {[%emt 0:02:22]} 21. Rxe1 {[%emt 0:00:16]} Rbe8 {[%emt 0:03:37]} 22. h3 Bxf3 {[%emt 0:00:36]} 23. Bxf3 {[%emt 0:01:35]} f5 {[%emt 0:01:47]} 24. Kg2 {[%emt 0:00:12]} Bc3 {[%emt 0:00:14]} 25. Re2 {[%emt 0:00:39]} Bxd2 {[%emt 0:00:03]} 26. Rxd2 {[%emt 0:00:01]} fxe4 {[%emt 0:00:02]} 27. Bg4 {[%emt 0:00:15]} Re5 {[%emt 0:00:48]} 28. Be6+ {[%emt 0:01:26]} Kg7 {[%emt 0:00:03]} 29. Re2 {[%emt 0:00:19]} e3 $19 {[%emt 0:04:36]} 30. h4 {[%emt 0:02:34]} h5 {[%emt 0:00:37]} 31. Bh3 {[%emt 0:01:34]} Kh6 {[%emt 0:00:37]} 32. Kg1 {[%emt 0:01:45]} g5 {[%emt 0:00:13]} 33. hxg5+ {[%emt 0:00:10]} Kxg5 {[%emt 0:00:03]} 34. Kg2 {[%emt 0:00:35]} h4 {[%emt 0:00:06]} 35. gxh4+ {[%emt 0:01:09]} Kxh4 {[%emt 0:00:03]} 36. Be6 {[%emt 0:00:19]} Rg5+ {[%emt 0:00:11]} 0-1

[Event "Karnataka State Open-ch 2018"]
[Site "Bengaluru"]
[Date "2018.04.15"]
[Round "4"]
[White "Vikas, Saini"]
[Black "Balkishan, A."]
[Result "0-1"]
[ECO "B90"]
[WhiteElo "1346"]
[BlackElo "2026"]
[Annotator "NA"]
[PlyCount "146"]
[EventDate "2018.??.??"]
[EventType "swiss"]
[EventCountry "IND"]
[SourceTitle "playchess.com"]
[Source "ChessBase"]
[SourceQuality "1"]
[TimeControl "5400+30"]

1. e4 {[%emt 0:01:08]} c5 {[%emt 0:00:03]} 2. Nf3 {[%emt 0:00:09]} d6 {[%emt 0:00:10]} 3. d4 {[%emt 0:00:39]} cxd4 {[%emt 0:00:03]} 4. Nxd4 {[%emt 0:00:07]} Nf6 {[%emt 0:00:03]} 5. Nc3 {[%emt 0:00:11]} a6 {[%emt 0:00:02]} 6. Be3 {[%emt 0:01:03]} e5 {[%emt 0:00:18]} 7. Nb3 {[%emt 0:02:02]} Be6 {[%emt 0:00:19]} 8. f3 {[%emt 0:00:35]} Nbd7 {[%emt 0:00:46]} 9. Qd2 {[%emt 0:00:36]} Be7 {[%emt 0:01:12]} 10. O-O-O {[%emt 0:00:56]} b5 {[%emt 0:01:11]} 11. g4 {[%emt 0:01:58]} Nb6 {[%emt 0:01:01]} 12. g5 {[%emt 0:11:38]} Nh5 {[%emt 0:01:14]} 13. Nd5 {[%emt 0:08:23]} Bxd5 {[%emt 0:02:58]} 14. Bxb6 {[%emt 0:03:25]} Qxb6 {[%emt 0:00:16]} 15. exd5 {[%emt 0:06:05]} Nf4 {[%emt 0:02:12]} 16. h4 {[%emt 0:00:46]} O-O {[%emt 0:06:03]} 17. Kb1 {[%emt 0:06:45]} a5 {[%emt 0:00:34]} 18. Nc1 {[%emt 0:00:51]} b4 {[%emt 0:00:48]} 19. Ne2 {[%emt 0:01:55]} Nh5 {[%emt 0:00:40]} 20. f4 {[%emt 0:02:50]} f6 {[%emt 0:11:56]} 21. Qd3 {[%emt 0:33:29]} a4 {[%emt 0:06:22]} 22. g6 {[%emt 0:03:08]} b3 {[%emt 0:10:20]} 23. gxh7+ {[%emt 0:01:03]} Kh8 {[%emt 0:00:01]} 24. a3 {[%emt 0:00:27]} bxc2+ {[%emt 0:00:41]} 25. Qxc2 {[%emt 0:00:17]} f5 {[%emt 0:00:57]} 26. fxe5 {[%emt 0:01:39]} dxe5 {[%emt 0:00:07]} 27. Qc6 {[%emt 0:02:10]} Qb3 {[%emt 0:01:21]} 28. Qc2 {[%emt 0:01:01]} Qb6 {[%emt 0:01:25]} 29. Qc6 {[%emt 0:00:49]} Rfb8 {[%emt 0:00:02]} 30. Qxb6 {[%emt 0:00:23]} Rxb6 {[%emt 0:00:01]} 31. Rh3 {[%emt 0:00:56]} Kxh7 {[%emt 0:00:45]} 32. Rc3 {[%emt 0:01:16]} Rab8 {[%emt 0:00:20]} 33. Rd2 {[%emt 0:01:03]} Bd6 {[%emt 0:05:48]} 34. Ka2 {[%emt 0:01:27]} Nf6 {[%emt 0:04:46]} 35. Rc6 {[%emt 0:01:03]} e4 {[%emt 0:03:23]} 36. Nd4 {[%emt 0:02:21]} g6 {[%emt 0:02:57]} 37. Rxb6 {[%emt 0:00:18]} Rxb6 {[%emt 0:00:02]} 38. Ne6 {[%emt 0:01:12]} Be5 {[%emt 0:00:37]} 39. Ng5+ {[%emt 0:01:20]} Kg7 {[%emt 0:00:05]} 40. Bc4 {[%emt 0:00:32]} Bf4 {[%emt 0:01:33]} 41. Rg2 {[%emt 0:00:50]} Bxg5 {[%emt 0:00:14]} 42. hxg5 {[%emt 0:00:38]} Ne8 {[%emt 0:00:14]} 43. Be2 {[%emt 0:01:14]} Nd6 {[%emt 0:01:55]} 44. Bd1 {[%emt 0:00:21]} Rb5 {[%emt 0:01:14]} 45. Rd2 {[%emt 0:00:37]} Ra5 {[%emt 0:00:47]} 46. Rd4 {[%emt 0:00:35]} f4 {[%emt 0:04:54]} 47. Kb1 {[%emt 0:00:28]} f3 {[%emt 0:00:19]} 48. Kc1 {[%emt 0:00:39]} Rc5+ {[%emt 0:01:13]} 49. Kd2 {[%emt 0:00:15]} e3+ {[%emt 0:00:18]} 50. Kd3 {[%emt 0:00:51]} f2 {[%emt 0:00:36]} 51. Rf4 {[%emt 0:00:29]} Rxd5+ {[%emt 0:00:14]} 52. Kxe3 {[%emt 0:00:26]} Rxd1 {[%emt 0:00:07]} 53. Kxf2 {[%emt 0:00:19]} Rd2+ {[%emt 0:01:13]} 54. Kg3 {[%emt 0:00:13]} Rxb2 {[%emt 0:00:15]} 55. Rxa4 {[%emt 0:00:10]} Rb5 {[%emt 0:00:05]} 56. Ra7+ {[%emt 0:00:32]} Kf8 {[%emt 0:01:17]} 57. Kf4 {[%emt 0:00:23]} Nf7 {[%emt 0:00:10]} 58. Ra8+ {[%emt 0:00:37]} Kg7 {[%emt 0:00:04]} 59. Ra7 {[%emt 0:00:29]} Rf5+ {[%emt 0:00:03]} 60. Ke4 {[%emt 0:00:29]} Rxg5 {[%emt 0:00:04]} 61. a4 {[%emt 0:00:17]} Rg4+ {[%emt 0:00:43]} 62. Kf3 {[%emt 0:00:41]} Rb4 {[%emt 0:00:07]} 63. a5 {[%emt 0:00:24]} Kf6 {[%emt 0:00:04]} 64. Ra6+ {[%emt 0:01:18]} Kf5 {[%emt 0:00:07]} 65. Ra8 {[%emt 0:00:16]} Rb3+ {[%emt 0:00:41]} 66. Kf2 {[%emt 0:00:47]} Kg4 {[%emt 0:01:30]} 67. a6 {[%emt 0:00:23]} Ra3 {[%emt 0:01:05]} 68. a7 {[%emt 0:00:29]} g5 {[%emt 0:00:12]} 69. Ke2 {[%emt 0:00:50]} Kg3 {[%emt 0:00:17]} 70. Kf1 {[%emt 0:00:32]} Ra2 {[%emt 0:00:41]} 71. Ke1 {[%emt 0:00:20]} g4 {[%emt 0:00:52]} 72. Kf1 {[%emt 0:00:30]} Ne5 {[%emt 0:00:16]} 73. Re8 {[%emt 0:00:28]} Nf3 {[%emt 0:00:06]} 0-1

[Event "Karnataka State Open-ch 2018"]
[Site "Bengaluru"]
[Date "2018.04.15"]
[Round "4"]
[White "Srinidhi, Kulkarni"]
[Black "Likhit, Chilukuri"]
[Result "0-1"]
[ECO "C02"]
[WhiteElo "1341"]
[BlackElo "1988"]
[Annotator "NA"]
[PlyCount "88"]
[EventDate "2018.??.??"]
[EventType "swiss"]
[EventCountry "IND"]
[SourceTitle "playchess.com"]
[Source "ChessBase"]
[SourceQuality "1"]
[TimeControl "5400+30"]

1. e4 {[%emt 0:00:00]} e6 {[%emt 0:00:06]} 2. d4 {[%emt 0:00:00]} d5 {[%emt 0:00:08]} 3. e5 {[%emt 0:00:07]} c5 {[%emt 0:00:05]} 4. c3 {[%emt 0:01:34]} Nc6 {[%emt 0:00:06]} 5. Bb5 {[%emt 0:01:28]} Bd7 {[%emt 0:00:08]} 6. Ne2 {[%emt 0:02:26]} Nxe5 {[%emt 0:00:06]} 7. Bxd7+ {[%emt 0:01:06]} Nxd7 {[%emt 0:00:17]} 8. f4 {[%emt 0:00:26]} Ndf6 {[%emt 0:00:32]} 9. Ng3 {[%emt 0:00:49]} Bd6 {[%emt 0:00:08]} 10. Be3 {[%emt 0:08:11]} cxd4 {[%emt 0:00:07]} 11. cxd4 {[%emt 0:01:09]} Ne7 {[%emt 0:00:07]} 12. Nc3 {[%emt 0:01:48]} O-O {[%emt 0:00:07]} 13. O-O {[%emt 0:00:03]} Rc8 {[%emt 0:00:51]} 14. Rc1 {[%emt 0:02:27]} a6 {[%emt 0:00:43]} 15. Na4 {[%emt 0:10:29]} Rxc1 {[%emt 0:00:17]} 16. Qxc1 {[%emt 0:00:03]} Qa5 {[%emt 0:00:05]} 17. Qd1 {[%emt 0:00:53]} b5 {[%emt 0:01:32]} 18. Nc3 {[%emt 0:02:07]} Qb4 {[%emt 0:01:07]} 19. Qb3 {[%emt 0:07:12]} Qxb3 {[%emt 0:00:42]} 20. axb3 {[%emt 0:00:02]} Ng4 {[%emt 0:02:02]} 21. Bd2 {[%emt 0:02:28]} Rc8 {[%emt 0:00:20]} 22. h3 {[%emt 0:02:55]} Nh6 {[%emt 0:00:06]} 23. Ra1 {[%emt 0:00:19]} Rc6 {[%emt 0:00:06]} 24. Rc1 {[%emt 0:06:50]} Nhf5 {[%emt 0:00:20]} 25. Nxf5 {[%emt 0:01:01]} Nxf5 {[%emt 0:00:07]} 26. Ne2 {[%emt 0:00:38]} Rxc1+ {[%emt 0:00:26]} 27. Bxc1 {[%emt 0:00:03]} h5 {[%emt 0:00:27]} 28. Kf2 {[%emt 0:00:28]} h4 {[%emt 0:00:06]} 29. Bd2 {[%emt 0:02:07]} b4 {[%emt 0:00:34]} 30. Kf3 {[%emt 0:00:38]} a5 {[%emt 0:00:20]} 31. Be1 {[%emt 0:00:48]} Bc7 {[%emt 0:01:35]} 32. Bf2 {[%emt 0:11:20]} Bb6 {[%emt 0:01:22]} 33. Kg4 {[%emt 0:01:48]} f6 {[%emt 0:00:06]} 34. Kf3 {[%emt 0:03:21]} Kf7 {[%emt 0:00:14]} 35. Bg1 {[%emt 0:02:38]} Ke7 {[%emt 0:08:58]} 36. Bf2 {[%emt 0:01:56]} Kd7 {[%emt 0:03:11]} 37. Kg4 {[%emt 0:02:04]} Kc6 {[%emt 0:00:15]} 38. Kh5 {[%emt 0:03:20]} e5 {[%emt 0:00:11]} 39. Kg6 {[%emt 0:07:23]} Nxd4 {[%emt 0:03:51]} 40. Nc1 {[%emt 0:01:14]} Ne6 {[%emt 0:06:06]} 41. Bxh4 {[%emt 0:03:23]} Nxf4+ {[%emt 0:00:10]} 42. Kxg7 {[%emt 0:00:58]} d4 {[%emt 0:03:17]} 43. Kxf6 {[%emt 0:01:35]} Nxg2 {[%emt 0:04:19]} 44. Kxe5 {[%emt 0:00:34]} Nxh4 0-1

[Event "Karnataka State Open-ch 2018"]
[Site "Bengaluru"]
[Date "2018.04.15"]
[Round "4"]
[White "Anantha, Krishna Nayak M"]
[Black "Kishan, Gangolli"]
[Result "0-1"]
[ECO "C00"]
[WhiteElo "1333"]
[BlackElo "1974"]
[Annotator "NA"]
[PlyCount "42"]
[EventDate "2018.??.??"]
[EventType "swiss"]
[EventCountry "IND"]
[SourceTitle "playchess.com"]
[Source "ChessBase"]
[SourceQuality "1"]
[TimeControl "5400+30"]

1. e4 e6 2. d3 d5 3. Nd2 c5 4. g3 Nc6 5. f4 h5 6. Ngf3 dxe4 7. dxe4 h4 8. Bg2 Be7 9. c3 Nh6 10. Nc4 Qxd1+ 11. Kxd1 Ng4 12. Ke2 b6 13. Rd1 Ba6 14. b3 Na5 15. Nfd2 Nxh2 16. Kf2 Rd8 17. Nxa5 hxg3+ 18. Kg1 Be2 19. Re1 Rxd2 20. Rxe2 Rxe2 21. Nc4 Re1+ 0-1

[Event "Karnataka State Open-ch 2018"]
[Site "Bengaluru"]
[Date "2018.04.15"]
[Round "4"]
[White "Yash, Abhijit Patil"]
[Black "Santoshkashyap, Hg"]
[Result "0-1"]
[ECO "B13"]
[WhiteElo "1323"]
[BlackElo "1929"]
[Annotator "NA"]
[PlyCount "124"]
[EventDate "2018.??.??"]
[EventType "swiss"]
[EventCountry "IND"]
[SourceTitle "playchess.com"]
[Source "ChessBase"]
[SourceQuality "1"]
[TimeControl "5400+30"]

1. e4 {[%emt 0:00:00]} c6 {[%emt 0:00:12]} 2. d4 {[%emt 0:00:00]} d5 {[%emt 0:00:08]} 3. exd5 {[%emt 0:00:15]} cxd5 {[%emt 0:00:08]} 4. Bd3 {[%emt 0:00:16]} Nc6 {[%emt 0:00:09]} 5. Nf3 {[%emt 0:00:24]} Bg4 {[%emt 0:00:10]} 6. c3 {[%emt 0:00:46]} Qc7 {[%emt 0:00:08]} 7. O-O {[%emt 0:00:39]} Nf6 {[%emt 0:00:08]} 8. Bg5 {[%emt 0:01:18]} e6 {[%emt 0:00:12]} 9. h3 {[%emt 0:00:16]} Bh5 {[%emt 0:00:06]} 10. Nbd2 {[%emt 0:00:27]} Bd6 {[%emt 0:00:21]} 11. Qc2 {[%emt 0:01:10]} Bg6 {[%emt 0:00:10]} 12. Rac1 {[%emt 0:00:58]} O-O {[%emt 0:00:20]} 13. Bxf6 {[%emt 0:00:41]} gxf6 {[%emt 0:00:07]} 14. Bxg6 {[%emt 0:01:40]} hxg6 {[%emt 0:00:09]} 15. Rfe1 {[%emt 0:00:39]} b5 {[%emt 0:07:02]} 16. Qd3 {[%emt 0:02:52]} a6 {[%emt 0:00:21]} 17. g3 {[%emt 0:02:28]} Kg7 {[%emt 0:06:59]} 18. Kg2 {[%emt 0:00:24]} Na5 {[%emt 0:00:28]} 19. Rh1 {[%emt 0:05:56]} Nc4 {[%emt 0:00:35]} 20. Nxc4 {[%emt 0:00:37]} Qxc4 {[%emt 0:01:02]} 21. Qxc4 {[%emt 0:00:12]} bxc4 {[%emt 0:00:07]} 22. Rc2 {[%emt 0:00:39]} Rab8 {[%emt 0:00:08]} 23. h4 {[%emt 0:00:11]} Rb5 {[%emt 0:00:12]} 24. Ra1 {[%emt 0:02:12]} a5 {[%emt 0:10:07]} 25. a4 {[%emt 0:01:25]} Rb6 {[%emt 0:00:22]} 26. Re2 {[%emt 0:01:02]} Rfb8 {[%emt 0:00:12]} 27. Ra2 {[%emt 0:00:14]} R6b7 {[%emt 0:07:27]} 28. Kf1 {[%emt 0:00:41]} Kf8 {[%emt 0:01:50]} 29. Ke1 {[%emt 0:00:51]} Ke7 {[%emt 0:00:21]} 30. Kd1 {[%emt 0:00:09]} Kd7 {[%emt 0:00:10]} 31. Kc1 {[%emt 0:00:13]} Bf8 {[%emt 0:03:01]} 32. Kc2 {[%emt 0:00:49]} Kd6 {[%emt 0:00:15]} 33. Re1 {[%emt 0:09:43]} Bg7 {[%emt 0:00:36]} 34. Re2 {[%emt 0:01:23]} e5 {[%emt 0:00:30]} 35. Re1 {[%emt 0:00:50]} Rb6 {[%emt 0:04:21]} 36. Re2 {[%emt 0:01:17]} e4 {[%emt 0:00:21]} 37. Nd2 {[%emt 0:00:34]} g5 {[%emt 0:01:22]} 38. hxg5 {[%emt 0:00:34]} fxg5 {[%emt 0:00:05]} 39. f3 {[%emt 0:00:16]} exf3 {[%emt 0:05:55]} 40. Nxf3 {[%emt 0:00:10]} f6 {[%emt 0:00:49]} 41. Rh2 {[%emt 0:00:49]} Ke6 {[%emt 0:00:31]} 42. g4 {[%emt 0:00:58]} Kf7 {[%emt 0:00:17]} 43. Rf2 {[%emt 0:00:42]} Kg6 {[%emt 0:00:14]} 44. Rg2 {[%emt 0:00:49]} Bf8 {[%emt 0:00:15]} 45. Re2 {[%emt 0:01:32]} Bd6 {[%emt 0:00:46]} 46. Re6 {[%emt 0:01:39]} Kf7 {[%emt 0:00:27]} 47. Re2 {[%emt 0:01:05]} Bf4 {[%emt 0:00:11]} 48. Rg2 {[%emt 0:01:22]} Re6 {[%emt 0:04:54]} 49. Ra1 {[%emt 0:00:49]} Rbe8 {[%emt 0:00:18]} 50. Ng1 {[%emt 0:01:22]} Kg6 {[%emt 0:01:25]} 51. Rf1 {[%emt 0:00:39]} f5 {[%emt 0:02:32]} 52. Kd1 {[%emt 0:00:51]} Re3 {[%emt 0:02:29]} 53. gxf5+ {[%emt 0:01:19]} Kxf5 {[%emt 0:00:05]} 54. Nf3 {[%emt 0:01:22]} g4 {[%emt 0:10:27]} 55. Nh4+ {[%emt 0:00:32]} Kg5 {[%emt 0:04:15]} 56. Nf3+ {[%emt 0:00:11]} Kh5 {[%emt 0:01:38]} 57. Nd2 {[%emt 0:01:20]} Rf8 {[%emt 0:03:16]} 58. Rh1+ {[%emt 0:02:38]} Kg5 {[%emt 0:00:08]} 59. Kc2 {[%emt 0:02:07]} Rfe8 {[%emt 0:02:52]} 60. Rh7 {[%emt 0:04:27]} g3 {[%emt 0:03:10]} 61. Rg7+ {[%emt 0:00:41]} Kf6 {[%emt 0:01:14]} 62. Rg4 {[%emt 0:00:57]} Kf5 {[%emt 0:00:16]} 0-1